bitfinex/quotes_BTCUSD_20240823
["timestamp","ask_amount","ask_price","bid_price","bid_amount"]
[1724453951302,0.003,64288.0,64263.0,0.311221]
[1724453951303,0.00055832,64284.0,64263.0,0.93423001]
[1724453951704,0.02438982,64272.0,64263.0,0.93423001]
[1724453952501,0.02438982,64272.0,64256.0,0.062331]
[1724453952700,0.00055832,64268.0,64253.0,0.3865]
[1724453952904,0.02438935,64263.0,64254.0,0.15617801]
[1724453953108,0.02438935,64263.0,64257.0,0.311248]
[1724453953348,0.02438935,64263.0,64262.0,0.466837]
[1724453953546,1.009141,64279.0,64263.0,0.778052]
[1724453953746,1.009141,64279.0,64263.0,0.40521101]
[1724453953943,0.00055832,64270.0,64243.0,0.41754]
[1724453954145,0.57432969,64271.0,64245.0,0.26451401]
[1724453954367,0.57432969,64271.0,64256.0,0.311251]
[1724453954572,0.57432969,64271.0,64257.0,0.155623]
[1724453954880,0.57432969,64271.0,64257.0,0.15617801]
[1724453955224,0.57432969,64271.0,64250.0,0.15564]
[1724453955225,0.02438997,64268.0,64250.0,0.15564]
[1724453955432,0.02438997,64268.0,64251.0,0.15617801]
[1724453955640,0.02438997,64268.0,64252.0,0.311273]
[1724453955853,0.02438997,64268.0,64244.0,0.1995]
[1724453955854,0.02438997,64268.0,64254.0,0.311263]
[1724453956116,0.02438997,64268.0,64244.0,0.1995]
[1724453956321,0.02438997,64268.0,64231.0,0.001]
[1724453956322,0.32016772,64267.0,64245.0,0.0586]
[1724453956500,0.04538584,64265.0,64231.0,0.5839]
[1724453956668,0.15617801,64264.0,64241.0,0.46876099]
[1724453956871,0.15617801,64264.0,64243.0,0.78007799]
[1724453957226,0.15617801,64264.0,64231.0,0.5839]
[1724453957227,0.02439598,64260.0,64244.0,0.15617801]
[1724453957421,0.02439598,64260.0,64251.0,0.155638]
[1724453957536,0.02439598,64260.0,64252.0,0.0466925]
[1724453957735,0.02439598,64260.0,64244.0,0.15617801]
[1724453957939,0.311246,64258.0,64231.0,0.5839]
[1724453958152,0.15617801,64257.0,64232.0,0.15617801]
[1724453958350,0.311283,64251.0,64227.0,0.03232786]
[1724453958554,0.311283,64251.0,64227.0,0.000829]
[1724453958555,0.04538584,64248.0,64227.0,0.000829]
[1724453958756,0.04553053,64243.0,64227.0,0.000829]
[1724453958998,0.04553053,64243.0,64227.0,0.15700701]
[1724453959209,0.04553053,64244.0,64227.0,0.15700701]
[1724453959536,0.04553053,64242.0,64227.0,0.000829]
[1724453959937,0.02440262,64240.0,64227.0,0.000829]
[1724453960302,0.155676,64236.0,64227.0,0.000829]
[1724453960498,0.04553053,64238.0,64227.0,0.000829]
[1724453960701,0.04553053,64237.0,64227.0,0.000829]
[1724453960901,0.09269841,64240.0,64227.0,0.000829]
[1724453960902,0.04553053,64238.0,64227.0,0.000829]
[1724453961330,0.04553053,64237.0,64227.0,0.000829]
[1724453961555,0.04553053,64238.0,64227.0,0.000829]
[1724453961717,0.09269841,64240.0,64228.0,0.17183101]
[1724453961718,0.04553053,64239.0,64228.0,0.17183101]
[1724453962066,0.04556154,64246.0,64241.0,0.155662]
[1724453962271,0.04556154,64251.0,64240.0,0.155666]
[1724453962472,0.04556154,64251.0,64241.0,0.155662]
[1724453962678,0.04556154,64253.0,64228.0,0.17183101]
[1724453962963,0.04556154,64253.0,64229.0,0.13282652]
[1724453963136,0.04556154,64253.0,64247.0,0.155648]
[1724453963370,0.02440042,64254.0,64231.0,0.15617801]
[1724453963517,0.02440042,64254.0,64172.0,0.0773995]
[1724453963518,0.02440042,64254.0,64253.0,0.155634]
[1724453963735,0.02440042,64254.0,64253.0,0.466903]
[1724453963959,0.03981572,64258.0,64257.0,0.155625]
[1724453964168,0.03981572,64258.0,64257.0,0.466875]
[1724453964369,0.03981572,64258.0,64257.0,0.778125]
[1724453964571,0.03981572,64258.0,64257.0,0.8750375]
[1724453964774,0.03981572,64258.0,64257.0,0.5637875]
[1724453964948,0.03981572,64258.0,64257.0,0.8750375]
[1724453965149,0.03981572,64258.0,64257.0,1.73536551]
[1724453965750,0.03981572,64258.0,64257.0,1.42411551]
[1724453965973,0.03981572,64258.0,64257.0,1.73536551]
[1724453966177,0.03981572,64258.0,64257.0,1.42411551]
[1724453966725,0.03981572,64258.0,64257.0,0.155625]
[1724453966904,0.03981572,64258.0,64257.0,0.93430301]
[1724453967292,0.03981572,64258.0,64257.0,1.24555301]
[1724453967511,0.03981572,64258.0,64257.0,1.65680301]
[1724453967914,0.03981572,64258.0,64252.0,0.191]
[1724453968117,0.03981572,64258.0,64253.0,0.17527801]
[1724453968295,0.03981572,64258.0,64252.0,0.34717801]
[1724453968638,0.03981572,64258.0,64255.0,0.155629]
[1724453968862,0.03981572,64258.0,64257.0,0.155125]
[1724453969146,0.03981572,64258.0,64254.0,0.311263]
[1724453969339,0.03981572,64258.0,64257.0,0.155625]
[1724453969484,0.03981572,64258.0,64257.0,0.62305301]
[1724453969680,0.03981572,64258.0,64257.0,0.93430301]
[1724453970764,0.03981572,64258.0,64257.0,0.466875]
[1724453970983,0.03981572,64258.0,64257.0,0.155625]
[1724453971257,0.03981572,64258.0,64257.0,0.53924821]
[1724453971446,0.03981572,64258.0,64244.0,0.039815]
[1724453971447,0.04028972,64258.0,64244.0,0.039815]
[1724453971671,0.15617801,64257.0,64243.0,0.00083]
[1724453971853,0.46743001,64257.0,64243.0,0.00083]
[1724453972055,0.02439433,64255.0,64243.0,0.00083]
[1724453972258,0.155656,64245.0,64243.0,0.00083]
[1724453972459,0.15617801,64244.0,64232.0,0.01890045]
[1724453972598,0.16397012,64244.0,64226.0,0.3929]
[1724453972794,0.069,64243.0,64217.0,0.311443]
[1724453972998,0.15617801,64242.0,64222.0,0.311414]
[1724453973200,0.15617801,64242.0,64228.0,0.155693]
[1724453973201,0.02440323,64240.0,64228.0,0.155693]
[1724453973422,0.02440323,64240.0,64218.0,0.15617801]
[1724453973650,0.02440323,64240.0,64227.0,0.155696]
[1724453974011,0.02440323,64240.0,64225.0,0.311404]
[1724453974012,0.02440323,64240.0,64228.0,0.155694]
[1724453974419,0.02440323,64240.0,64222.0,0.311418]
[1724453974420,0.02440323,64240.0,64226.0,0.155698]
[1724453974626,0.02440323,64240.0,64227.0,0.155697]
[1724453974832,0.02440323,64240.0,64173.0,0.0771816]
[1724453974833,0.15617801,64228.0,64196.0,0.4131]
[1724453975056,0.20203043,64228.0,64209.0,0.46876099]
[1724453975268,0.04585242,64224.0,64203.0,0.311509]
[1724453975546,0.04585242,64224.0,64203.0,0.15617801]
[1724453975547,0.15617801,64223.0,64203.0,0.15617801]
[1724453975763,0.15617801,64223.0,64208.0,0.155742]
[1724453975941,0.15617801,64223.0,64207.0,0.155743]
[1724453976362,0.15617801,64223.0,64204.0,0.0156178]
[1724453976559,0.46876099,64219.0,64208.0,0.155743]
[1724453976758,0.11463106,64214.0,64174.0,0.46876099]
[1724453977076,0.20211455,64213.0,64194.0,0.46876099]
[1724453977274,0.02441484,64210.0,64195.0,0.15617801]
[1724453977511,0.04593654,64221.0,64199.0,0.4131]
[1724453977863,0.069,64229.0,64200.0,0.76887331]
[1724453977864,0.07034666,64229.0,64200.0,0.76887331]
[1724453978080,0.02441012,64229.0,64206.0,0.15617801]
[1724453978289,0.46876099,64228.0,64220.0,0.155713]
[1724453978513,0.02441012,64229.0,64220.0,0.15617801]
[1724453979047,0.02441012,64229.0,64225.0,0.155701]
[1724453979246,0.02441012,64229.0,64226.0,0.0311879]
[1724453980558,0.02441012,64229.0,64228.0,0.155695]
[1724453980706,0.02441012,64229.0,64228.0,0.0155695]
[1724453980917,0.02441012,64229.0,64228.0,0.63883251]
[1724453981115,0.069,64250.0,64228.0,0.63883251]
[1724453981116,0.069,64250.0,64228.0,0.17174751]
[1724453981333,0.02440171,64242.0,64229.0,0.15617801]
[1724453982107,0.155644,64249.0,64229.0,0.15617801]
[1724453982323,0.155644,64249.0,64230.0,0.03274405]
[1724453982515,0.0244007,64250.0,64231.0,0.11636229]
[1724453982721,0.0244007,64250.0,64231.0,0.27204829]
[1724453982943,0.0244007,64250.0,64232.0,0.155685]
[1724453983151,0.18057871,64250.0,64230.0,0.03274405]
[1724453983395,0.18057871,64250.0,64228.0,0.2069695]
[1724453983396,0.311297,64248.0,64231.0,0.02397136]
[1724453983572,0.15617801,64232.0,64191.0,0.46876099]
[1724453983886,0.04985218,64231.0,64212.0,0.46876099]
[1724453984002,0.069,64218.0,64191.0,0.46876099]
[1724453984207,0.402564,64213.0,64192.0,0.0468761]
[1724453984407,0.15617801,64212.0,64192.0,0.0468761]
[1724453984678,0.155744,64208.0,64187.0,0.155793]
[1724453984875,0.15617801,64207.0,64187.0,0.31197101]
[1724453985177,0.15617801,64207.0,64187.0,0.15617801]
[1724453985315,0.15575,64206.0,64187.0,0.15617801]
[1724453985722,0.15617801,64207.0,64187.0,0.15617801]
[1724453985941,0.31192401,64207.0,64188.0,0.0311973]
[1724453986140,0.155756,64203.0,64188.0,0.0311973]
[1724453986406,0.15617801,64207.0,64188.0,0.0311973]
[1724453986837,0.15617801,64207.0,64181.0,0.1]
[1724453986838,0.46876099,64206.0,64181.0,0.1]
[1724453987040,0.155771,64197.0,64181.0,0.1]
[1724453987241,0.311513,64203.0,64181.0,0.1]
[1724453987242,0.15617801,64196.0,64181.0,0.1]
[1724453987662,0.02441628,64203.0,64182.0,0.15617801]
[1724453987863,0.46876099,64202.0,64182.0,0.15617801]
[1724453988037,0.02441628,64203.0,64184.0,0.311603]
[1724453988404,0.02441628,64203.0,64185.0,0.15617801]
[1724453988938,0.02441628,64203.0,64190.0,0.155786]
[1724453989138,0.02441628,64203.0,64191.0,0.155784]
[1724453989365,0.02441628,64203.0,64189.0,0.155788]
[1724453989567,0.02441628,64203.0,64190.0,0.0623554]
[1724453989794,0.02441628,64203.0,64192.0,0.155781]
[1724453989937,0.02441628,64203.0,64190.0,0.0623554]
[1724453989938,0.02441628,64203.0,64190.0,0.2181414]
[1724453990364,0.02441628,64203.0,64191.0,0.155784]
[1724453990562,0.02441628,64203.0,64194.0,0.311555]
[1724453990768,0.02441628,64203.0,64196.0,0.311543]
[1724453990976,0.311416,64223.0,64195.0,0.05300884]
[1724453991262,0.02441294,64214.0,64201.0,0.155759]
[1724453991500,0.624939,64222.0,64196.0,0.15617801]
[1724453991501,0.15617801,64222.0,64196.0,0.15617801]
[1724453991656,0.15617801,64213.0,64188.0,0.31158]
[1724453991823,0.15617801,64213.0,64197.0,0.155269]
[1724453991983,0.15617801,64213.0,64196.0,0.155772]
[1724453992182,0.15617801,64213.0,64193.0,0.311559]
[1724453992183,0.15617801,64213.0,64197.0,0.0467331]
[1724453992385,0.15617801,64213.0,64199.0,0.155763]
[1724453992593,0.15617801,64213.0,64197.0,0.0467331]
[1724453992811,0.15617801,64213.0,64200.0,0.155762]
[1724453993021,0.15617801,64213.0,64185.0,0.1]
[1724453993022,0.15617801,64213.0,64182.0,0.31161]
[1724453993209,0.15617801,64213.0,64184.0,0.20602839]
[1724453993414,0.18015593,64209.0,64189.0,0.155789]
[1724453993636,0.15617801,64208.0,64188.0,0.155791]
[1724453993870,0.15617801,64208.0,64186.0,0.311593]
[1724453993871,0.31192201,64208.0,64186.0,0.311593]
[1724453994088,0.31192201,64208.0,64188.0,0.15579]
[1724453994246,0.31192201,64208.0,64189.0,0.06734114]
[1724453994445,0.15617801,64208.0,64189.0,0.06734114]
[1724453994645,0.15617801,64208.0,64190.0,0.155786]
[1724453995139,0.15617801,64208.0,64189.0,0.06734114]
[1724453995332,0.15617801,64208.0,64190.0,0.155787]
[1724453995489,0.15617801,64208.0,64191.0,0.20925511]
[1724453995694,0.15617801,64208.0,64191.0,0.05347211]
[1724453996094,0.15617801,64208.0,64191.0,0.20925611]
[1724453996300,0.15617801,64208.0,64191.0,0.05347211]
[1724453996821,0.15617801,64208.0,64193.0,0.15578]
[1724453997022,0.15617801,64208.0,64194.0,0.05881663]
[1724453997222,0.155749,64206.0,64191.0,0.05347211]
[1724453997458,0.15617801,64205.0,64189.0,0.06734114]
[1724453997691,0.02441393,64209.0,64189.0,0.06734114]
[1724453997904,0.0911,64224.0,64195.0,0.155774]
[1724453998111,0.311455,64215.0,64186.0,0.00083]
[1724453998321,0.49317524,64216.0,64186.0,0.00083]
[1724453998322,0.155737,64211.0,64191.0,0.155783]
[1724453998459,0.311463,64213.0,64187.0,0.46776501]
[1724453998460,0.15617801,64210.0,64192.0,0.155781]
[1724453998663,0.15617801,64210.0,64193.0,0.0467365]
[1724453999604,0.02441433,64209.0,64193.0,0.0467365]
[1724453999807,0.15617801,64208.0,64193.0,0.0467365]
[1724454000137,0.15471801,64208.0,64193.0,0.0467365]
[1724454000339,0.069,64228.0,64194.0,0.15617801]
[1724454000644,0.02441397,64220.0,64199.0,0.311529]
[1724454000864,0.02441397,64220.0,64195.0,0.02029145]
[1724454000865,0.311441,64218.0,64195.0,0.02029145]
[1724454001095,0.15617801,64217.0,64196.0,0.15617801]
[1724454001296,0.31190101,64217.0,64198.0,0.155768]
[1724454001578,0.31190101,64217.0,64198.0,0.311535]
[1724454001579,0.15617801,64217.0,64198.0,0.311535]
[1724454001753,0.02441397,64220.0,64199.0,0.28966456]
[1724454001950,0.02441397,64220.0,64210.0,0.311476]
[1724454002186,0.02441397,64220.0,64215.0,0.155726]
[1724454002385,0.0911,64233.0,64210.0,0.155737]
[1724454002502,0.15617801,64227.0,64210.0,0.155737]
[1724454002879,0.15591981,64227.0,64212.0,0.311465]
[1724454003080,0.069,64238.0,64217.0,0.31144]
[1724454003278,0.311311,64245.0,64218.0,0.3781]
[1724454003279,0.311327,64242.0,64218.0,0.3781]
[1724454003491,0.0911,64243.0,64211.0,0.0155737]
[1724454003492,0.0911,64243.0,64212.0,0.3781]
[1724454003694,0.31134,64239.0,64214.0,0.311457]
[1724454003892,0.155677,64236.0,64215.0,0.42918098]
[1724454004099,0.155666,64241.0,64216.0,0.311447]
[1724454004300,0.0911,64243.0,64220.0,0.311426]
[1724454004507,0.001,64240.0,64217.0,0.15617801]
[1724454004943,0.0911,64243.0,64223.0,0.311412]
[1724454005157,0.15660101,64231.0,64224.0,0.0311412]
[1724454005409,0.15660101,64231.0,64212.0,0.3781]
[1724454005410,0.00091301,64231.0,64212.0,0.689563]
[1724454005612,0.00091301,64231.0,64213.0,0.15617801]
[1724454005810,0.15617801,64230.0,64212.0,0.3781]
[1724454006049,0.31139,64229.0,64212.0,0.3781]
[1724454006262,0.15617801,64228.0,64212.0,0.3781]
[1724454006473,0.15617801,64228.0,64211.0,0.0155737]
[1724454006474,0.069,64223.0,64211.0,0.0155737]
[1724454006651,0.069,64223.0,64202.0,0.3781]
[1724454006652,0.15617801,64222.0,64202.0,0.3781]
[1724454006880,0.15572,64218.0,64202.0,0.3781]
[1724454007093,0.15617801,64218.0,64202.0,0.3781]
[1724454007306,0.155722,64217.0,64202.0,0.3781]
[1724454007508,0.15617801,64218.0,64203.0,0.05651]
[1724454007821,0.06991301,64231.0,64203.0,0.05651]
[1724454008102,0.15617801,64230.0,64220.0,0.23364]
[1724454008230,0.15617801,64230.0,64212.0,0.155733]
[1724454008429,0.15617801,64230.0,64204.0,0.15617801]
[1724454008649,0.15617801,64230.0,64209.0,0.00083]
[1724454008853,0.15617801,64230.0,64209.0,0.15700801]
[1724454009100,0.06991301,64231.0,64210.0,0.15617801]
[1724454009505,0.00091301,64231.0,64210.0,0.15617801]
[1724454009920,0.00091301,64231.0,64212.0,0.311466]
[1724454010190,0.02440699,64226.0,64213.0,0.20302541]
[1724454010484,0.02440699,64226.0,64225.0,0.845207]
[1724454010701,0.02440699,64226.0,64225.0,0.3781]
[1724454010891,0.02440699,64226.0,64220.0,0.155712]
[1724454011037,0.02440699,64226.0,64221.0,0.15617801]
[1724454011241,0.02440699,64226.0,64222.0,0.0779048]
[1724454011442,0.02440699,64226.0,64216.0,0.3781]
[1724454011653,0.02440699,64226.0,64212.0,1.2432]
[1724454011858,0.31143,64220.0,64209.0,0.00083]
[1724454012062,0.155738,64210.0,64209.0,0.00083]
[1724454012260,0.15617801,64210.0,64209.0,0.00083]
[1724454012668,0.18059056,64210.0,64209.0,0.00083]
[1724454012895,0.02441255,64210.0,64209.0,0.00083]
[1724454013500,0.02441255,64210.0,64209.0,0.1722286]
[1724454013701,0.0911,64226.0,64209.0,0.0164876]
[1724454014057,0.02440901,64218.0,64209.0,0.00083]
[1724454014259,0.02440901,64218.0,64211.0,0.155735]
[1724454014464,0.02440901,64218.0,64210.0,0.01458]
[1724454014465,0.02440901,64218.0,64210.0,0.326053]
[1724454014678,0.02440901,64218.0,64212.0,0.155733]
[1724454014897,0.02440901,64218.0,64210.0,0.01458]
[1724454015112,0.02440901,64218.0,64211.0,0.2276548]
[1724454015316,0.02440901,64218.0,64211.0,0.0719198]
[1724454015934,0.02440901,64218.0,64212.0,0.155732]
[1724454016159,0.02440901,64218.0,64211.0,0.0719198]
[1724454016362,0.02440901,64218.0,64212.0,0.155732]
[1724454016571,0.02440901,64218.0,64213.0,0.09468368]
[1724454016800,0.02440901,64218.0,64213.0,0.25041468]
[1724454016979,0.02440901,64218.0,64216.0,0.155723]
[1724454017180,0.02440901,64218.0,64213.0,0.09468368]
[1724454017933,0.02440901,64218.0,64217.0,0.155722]
[1724454018132,0.02440901,64218.0,64217.0,0.02504057]
[1724454018498,0.02440901,64218.0,64217.0,0.18076257]
[1724454018699,0.02440901,64218.0,64217.0,0.80365057]
[1724454018895,0.02440901,64218.0,64217.0,0.18076257]
[1724454019143,0.02440901,64218.0,64217.0,0.33694058]
[1724454019320,0.02440901,64218.0,64217.0,0.64838458]
[1724454019537,0.02440901,64218.0,64217.0,0.51724058]
[1724454019735,0.02440901,64218.0,64217.0,0.82868458]
[1724454019977,0.02440901,64218.0,64217.0,1.14012858]
[1724454020744,0.02440901,64218.0,64217.0,0.82868458]
[1724454021128,0.02440901,64218.0,64217.0,0.1803]
[1724454021328,0.02401642,64218.0,64213.0,0.09468368]
[1724454021528,0.02401642,64218.0,64217.0,0.155722]
[1724454021733,0.02401642,64218.0,64217.0,0.62334401]
[1724454021932,0.02401642,64218.0,64210.0,0.01458]
[1724454022138,0.02401642,64218.0,64213.0,0.15573]
[1724454022337,0.02401642,64218.0,64210.0,0.01458]
[1724454022702,0.02401642,64218.0,64211.0,0.0915505]
[1724454022703,0.02375822,64218.0,64211.0,0.0915505]
[1724454023339,0.02371822,64218.0,64214.0,0.155727]
[1724454023781,0.02371822,64218.0,64217.0,0.155722]
[1724454023952,0.02371822,64218.0,64213.0,0.311462]
[1724454024206,0.02371822,64218.0,64217.0,0.155722]
[1724454024393,0.02371822,64218.0,64217.0,0.68567921]
[1724454024621,0.02371822,64218.0,64217.0,0.99712321]
[1724454024825,0.02371822,64218.0,64217.0,1.14812521]
[1724454025020,0.02371822,64218.0,64217.0,1.44836021]
[1724454025227,0.00090861,64227.0,64217.0,1.44836021]
[1724454025228,0.00090861,64227.0,64226.0,0.4671]
[1724454025557,0.00090861,64227.0,64226.0,0.20288801]
[1724454025759,0.00090861,64227.0,64226.0,0.62327801]
[1724454026397,0.00090861,64227.0,64216.0,0.03]
[1724454026398,0.0911,64226.0,64210.0,0.01458]
[1724454026607,0.00090861,64227.0,64212.0,0.15617801]
[1724454026808,0.00090861,64227.0,64212.0,0.35247801]
[1724454026959,0.00090861,64227.0,64220.0,0.155713]
[1724454027137,0.00090861,64227.0,64212.0,0.35247801]
[1724454027352,0.00090861,64227.0,64217.0,0.15572]
[1724454027553,0.00090861,64227.0,64217.0,0.15617801]
[1724454028180,0.00090861,64227.0,64217.0,0.31189901]
[1724454028386,0.00090861,64227.0,64217.0,0.15617801]
[1724454028744,0.00090861,64227.0,64218.0,0.15617801]
[1724454028945,0.00090861,64227.0,64219.0,0.0156178]
[1724454029577,0.00090861,64227.0,64220.0,0.311426]
[1724454029811,0.00090861,64227.0,64226.0,0.4671]
[1724454030038,0.00090861,64227.0,64222.0,0.155708]
[1724454030239,0.00090861,64227.0,64223.0,0.15617801]
[1724454030622,0.00090861,64227.0,64224.0,0.03275068]
[1724454030824,0.00090861,64227.0,64225.0,0.311405]
[1724454031042,0.00090861,64227.0,64226.0,0.1557]
[1724454031279,0.00090861,64227.0,64224.0,0.34463269]
[1724454031472,0.00090861,64227.0,64224.0,0.18892869]
[1724454031760,0.00090861,64227.0,64225.0,0.20573567]
[1724454031938,0.00090861,64227.0,64225.0,0.05003467]
[1724454032229,0.00090861,64227.0,64226.0,0.62327801]
[1724454032472,0.00090861,64227.0,64226.0,1.24607801]
[1724454032701,0.00090861,64227.0,64226.0,1.63267801]
[1724454032929,0.00090861,64227.0,64226.0,1.78880969]
[1724454033166,0.00090861,64227.0,64226.0,1.47740969]
[1724454034129,0.00090861,64227.0,64226.0,1.78880969]
[1724454034360,0.00090861,64227.0,64226.0,3.15500969]
[1724454034615,0.00090861,64227.0,64226.0,2.82060969]
[1724454034843,0.00090861,64227.0,64226.0,3.13200969]
[1724454035340,0.00090861,64227.0,64226.0,1.88880969]
[1724454035856,0.00091301,64231.0,64230.0,1.08983]
[1724454036072,0.00091301,64231.0,64230.0,2.35358801]
[1724454036964,0.57432969,64256.0,64239.0,0.03]
[1724454037162,0.57432969,64256.0,64250.0,0.15564]
[1724454037163,0.55974969,64256.0,64250.0,0.15564]
[1724454037375,0.55974969,64256.0,64241.0,0.311326]
[1724454037376,0.55974969,64256.0,64255.0,0.466888]
[1724454037568,0.55974969,64256.0,64251.0,0.5828]
[1724454037569,0.55974969,64256.0,64253.0,0.155634]
[1724454037774,0.55974969,64256.0,64252.0,0.311273]
[1724454038022,0.55974969,64256.0,64253.0,0.311268]
[1724454038187,0.55974969,64256.0,64255.0,0.155629]
[1724454038337,0.55974969,64256.0,64255.0,0.466888]
[1724454038743,0.55974969,64256.0,64255.0,0.778147]
[1724454038968,0.55974969,64256.0,64255.0,0.466888]
[1724454039437,0.55974969,64256.0,64253.0,0.155634]
[1724454039636,0.55974969,64256.0,64251.0,0.5828]
[1724454039801,0.55974969,64256.0,64253.0,0.155633]
[1724454039974,0.55974969,64256.0,64251.0,0.5828]
[1724454040253,0.55974969,64256.0,64252.0,0.311273]
[1724454040400,0.55974969,64256.0,64253.0,0.43234761]
[1724454040610,0.55974969,64256.0,64253.0,0.1205356]
[1724454040813,0.55974969,64256.0,64231.0,0.4215]
[1724454040814,0.55974969,64256.0,64233.0,0.4068]
[1724454041122,0.55974969,64256.0,64234.0,0.15617801]
[1724454041283,0.15617801,64255.0,64233.0,0.4068]
[1724454041734,0.55974969,64256.0,64236.0,0.311351]
[1724454041943,0.55974969,64256.0,64237.0,0.24361091]
[1724454042146,0.55974969,64256.0,64237.0,0.39928191]
[1724454042387,0.55974969,64256.0,64237.0,0.24361091]
[1724454042793,0.71537769,64256.0,64237.0,0.24361091]
[1724454042965,0.155633,64254.0,64233.0,0.155681]
[1724454043176,0.155633,64254.0,64232.0,0.46876099]
[1724454043177,0.155633,64254.0,64234.0,0.31185801]
[1724454043374,0.7159277,64256.0,64234.0,0.46753601]
[1724454043375,0.8715557,64256.0,64234.0,0.46753601]
[1724454043597,0.7159277,64256.0,64234.0,0.15617801]
[1724454044027,0.55974969,64256.0,64234.0,0.15617801]
[1724454044175,0.55974969,64256.0,64236.0,0.15617801]
[1724454044520,0.59956541,64256.0,64236.0,0.15617801]
[1724454044721,0.59956541,64256.0,64245.0,0.311306]
[1724454045023,0.59956541,64256.0,64246.0,0.15617801]
[1724454045362,0.59956541,64256.0,64255.0,0.466888]
[1724454045563,0.59956541,64256.0,64255.0,0.0466888]
[1724454045773,0.59956541,64256.0,64244.0,0.1]
[1724454045969,0.59956541,64256.0,64245.0,0.15617801]
[1724454046288,0.59956541,64256.0,64235.0,0.4692939]
[1724454046499,0.59956541,64256.0,64238.0,0.155669]
[1724454046706,0.59956541,64256.0,64239.0,0.15617801]
[1724454046928,0.59956541,64256.0,64240.0,0.09368259]
[1724454047126,0.00090861,64254.0,64240.0,0.09368259]
[1724454047524,0.00090861,64254.0,64241.0,0.15617801]
[1724454047927,0.00090861,64254.0,64242.0,0.311319]
[1724454048295,0.00090861,64254.0,64243.0,0.311316]
[1724454048513,0.00090861,64254.0,64253.0,0.155634]
[1724454048713,0.00090861,64254.0,64253.0,0.31181201]
[1724454048927,0.00090861,64254.0,64253.0,0.15617801]
[1724454049128,0.00090861,64254.0,64253.0,0.31181201]
[1724454049537,0.00090861,64254.0,64253.0,1.84041901]
[1724454049749,0.00090861,64254.0,64253.0,1.68528169]
[1724454049955,0.00090861,64254.0,64253.0,1.99655069]
[1724454050784,0.00090861,64254.0,64253.0,2.25969669]
[1724454050989,0.00090861,64254.0,64253.0,1.68528169]
[1724454051285,0.00090861,64254.0,64253.0,0.71910969]
[1724454051495,0.00090861,64254.0,64253.0,0.31230969]
[1724454051712,0.00090861,64254.0,64253.0,0.15617801]
[1724454051896,0.00090861,64254.0,64253.0,0.62308101]
[1724454052634,0.00090861,64254.0,64253.0,0.93435001]
[1724454052751,0.00090861,64254.0,64253.0,1.24561901]
[1724454055942,0.00090861,64254.0,64253.0,0.15617801]
[1724454056177,0.00090861,64254.0,64253.0,0.0156178]
[1724454056362,0.00090861,64254.0,64245.0,0.4068]
[1724454056665,0.00090861,64254.0,64249.0,0.155643]
[1724454056861,0.00090861,64254.0,64251.0,0.155639]
[1724454057246,0.00090861,64254.0,64250.0,0.31181901]
[1724454057445,0.00090861,64254.0,64250.0,0.15617801]
[1724454057650,0.00090861,64254.0,64251.0,0.0623119]
[1724454058045,0.00090861,64254.0,64251.0,0.2179499]
[1724454058242,0.00090861,64254.0,64251.0,0.0623119]
[1724454058670,0.00090861,64254.0,64251.0,0.2179499]
[1724454058870,0.00090861,64254.0,64251.0,0.0623119]
[1724454059030,0.00090861,64254.0,64252.0,0.05297759]
[1724454059663,0.00090861,64254.0,64253.0,0.93435001]
[1724454059861,0.00090861,64254.0,64253.0,0.15617801]
[1724454060687,0.00090861,64254.0,64236.0,1.2432]
[1724454060896,0.00090861,64254.0,64236.0,1.71196099]
[1724454061065,0.00090861,64254.0,64236.0,1.2432]
[1724454061266,0.15654061,64254.0,64236.0,1.2432]
[1724454061444,0.15654061,64254.0,64240.0,0.15695768]
[1724454061648,0.00090861,64254.0,64240.0,0.15695768]
[1724454062124,0.15654061,64254.0,64240.0,0.15695768]
[1724454062375,0.00090861,64254.0,64240.0,0.15695768]
[1724454063568,0.00090861,64254.0,64253.0,0.466903]
[1724454063776,0.00090861,64254.0,64253.0,0.70743131]
[1724454064004,0.00090861,64254.0,64253.0,1.01870031]
[1724454065129,0.00090861,64254.0,64253.0,1.32996931]
[1724454066092,0.00090861,64254.0,64253.0,1.01870031]
[1724454067044,0.00090861,64254.0,64253.0,1.32996931]
[1724454068763,0.00090861,64254.0,64253.0,2.57316931]
[1724454071661,0.00090861,64254.0,64253.0,2.88443831]
[1724454071975,0.00090861,64254.0,64253.0,2.98443831]
[1724454072587,0.29011554,64256.0,64255.0,1.089406]
[1724454072788,0.29011554,64256.0,64255.0,1.24558401]
[1724454072986,0.29011554,64256.0,64255.0,1.34558401]
[1724454073402,0.29011554,64256.0,64255.0,1.64716901]
[1724454073720,0.29011554,64256.0,64255.0,1.95842801]
[1724454074058,0.29011554,64256.0,64255.0,2.04277831]
[1724454074495,0.29011554,64256.0,64255.0,2.35403731]
[1724454074903,0.000474,64258.0,64257.0,1.119375]
[1724454075102,0.000474,64258.0,64257.0,2.04273401]
[1724454075300,0.000474,64258.0,64257.0,3.41269901]
[1724454075503,0.000474,64258.0,64257.0,3.56376141]
[1724454075851,0.00091191,64259.0,64258.0,1.470257]
[1724454076048,9.1e-07,64259.0,64258.0,4.56841801]
[1724454076303,1.009141,64279.0,64278.0,0.77787]
[1724454076509,1.009141,64279.0,64278.0,1.80799601]
[1724454076681,1.009141,64279.0,64278.0,1.99234631]
[1724454079476,1.009141,64279.0,64278.0,2.01534631]
[1724454080031,1.009141,64279.0,64257.0,0.3809]
[1724454080353,1.009141,64279.0,64258.0,0.15617801]
[1724454080678,1.009141,64279.0,64278.0,0.155574]
[1724454080862,1.009141,64279.0,64278.0,0.466722]
[1724454081078,1.009141,64279.0,64278.0,0.5133942]
[1724454081781,1.009141,64279.0,64278.0,0.66957221]
[1724454081934,1.009141,64279.0,64278.0,0.98072021]
[1724454082137,1.009141,64279.0,64278.0,0.35803078]
[1724454082338,1.009141,64279.0,64278.0,0.66957221]
[1724454082545,1.009141,64279.0,64278.0,1.29186821]
[1724454083230,1.009141,64279.0,64278.0,0.98072021]
[1724454084963,1.009141,64279.0,64278.0,1.39186821]
[1724454085165,1.009141,64279.0,64278.0,2.81696821]
[1724454085343,1.009141,64279.0,64278.0,3.15111621]
[1724454085537,1.009141,64279.0,64278.0,3.78850121]
[1724454085739,1.009141,64279.0,64278.0,3.62510121]
[1724454085996,1.009141,64279.0,64278.0,3.51566321]
[1724454086665,1.009141,64279.0,64278.0,2.83996821]
[1724454087548,1.009141,64279.0,64278.0,2.84606707]
[1724454087977,1.009141,64279.0,64278.0,3.15721507]
[1724454088149,1.009141,64279.0,64278.0,2.84606707]